Cogmind - Beta 15 @@@ ROGUE MODE // 2025.05.20 @ 19:12:58 Player: Epsilon 11 Result: Destroyed by P-80 Master with Gamma Rifle Performance ------------- Evolutions (9) 4500 Regions Visited (21) 4200 Robots Destroyed (188) 940 Value Destroyed (8819) 8819 Prototype IDs (54) 1080 Alien Tech Used (2) 400 Bonus (4577) 4577 TOTAL SCORE: 24516 Bonus ------- High Alert Combat Kills 552 Follower Combat Kills 725 Entered Garrisons 200 Delivered SUBCON Basin 2000 Registered with UFD 300 Met Optimus in HQ 500 Met Zhirov 300 Cogmind --------- Core Integrity 0/1600 Matter 155/300 Energy 99/100 System Corruption 5% Temperature Cool (0) Movement Core (50) Location -1/Access Parts ------- > --- POWER (2) -------- (None) > --- PROPULSION (10) -- (None) > --- UTILITY (11) ----- Advanced Targeting Computer Advanced Target Analyzer > --- WEAPON (2) ------- (None) > --- INVENTORY (5) ---- Improved Remote Datajack Peak State ------------ > --- POWER ------------ Light Quantum Reactor > --- PROPULSION ------- Centrium Wheel Centrium Wheel Cooled Nuclear Pulse Thruster Cooled Nuclear Pulse Thruster Cooled Nuclear Pulse Thruster Cooled Nuclear Pulse Thruster Cooled Nuclear Pulse Thruster Cooled Nuclear Pulse Thruster Impulse Thruster Array > --- UTILITY ---------- Advanced Sensor Array Advanced Signal Interpreter Long-range Terrain Scanner Advanced Terrain Scan Processor Advanced Targeting Computer Advanced Target Analyzer Quantum Capacitor Transmission Jammer Advanced System Shield Improved Dynamic Insulation System > --- WEAPON ----------- Phase Gun Power Sword > --- INVENTORY -------- Improved Core Shielding Graphene Brace Phase Gun Improved Remote Datajack Botcube [Rating: 157] Favorites ----------- Power Subdweller Power Source Engine Subdweller Power Source Power Core Light Nuclear Core Reactor Light Antimatter Reactor Propulsion Compact Wheel Treads Improved Heavy Treads Leg Carbon-fiber Leg Wheel Compact Wheel Flight Unit Cooled Nuclear Pulse Thruster Utility Core Analyzer Device Advanced Heat Sink Storage Large Storage Unit Processor Core Analyzer Hackware Improved System Shield Protection Experimental Utility Shielding Weapon Subdweller Beam Cannon Energy Gun Phase Gun Energy Cannon Subdweller Beam Cannon Ballistic Gun Assault Rifle Ballistic Cannon Slug Cannon Launcher Rocket Launcher Special Weapon Remote Datajack Slashing Weapon Mining Claw Piercing Weapon Heavy Pick Build | -11 -10 -10 -10 -9 -9 -6 -6 -5 -5 -5 -5 -5 -5 -4 -4 -4 -4 -3 -2 -2 -1 ------- Run | Yrd Mat Min Sub Rec Scr Fac Gar Fac Was Fac Upp Upp Zhi Pro Fac Upp Upp Res Res Qua Acc Slots Evolved 18 | . . . . . . 8 . 2 . . . . . . 2 . . 2 2 . 2 Power 1 | . . . . . . 1 . . . . . . . . . . . . . . . Propulsion 8 | . . . . . . 2 . . . . . . . . . . . 2 2 . 2 Utility 9 | . . . . . . 5 . 2 . . . . . . 2 . . . . . . Weapon . | . . . . . . . . . . . . . . . . . . . . . . Parts Attached 204 | 7 2 1 11 . 3 38 15 3 1 9 5 9 4 4 44 7 . 5 25 4 7 Power 26 | 1 1 . 1 . 1 5 3 . 1 1 1 . . 1 6 . . 1 2 1 . Engine 10 | 1 1 . 1 . 1 3 2 . . . 1 . . . . . . . . . . Core 6 | . . . . . . 2 1 . . 1 . . . 1 . . . 1 . . . Reactor 10 | . . . . . . . . . 1 . . . . . 6 . . . 2 1 . Propulsion 48 | 2 . . 1 . 1 8 6 . . . 1 3 . 1 6 3 . 2 13 1 . Treads 5 | . . . . . . . . . . . . 1 . . 3 . . . 1 . . Leg 23 | . . . . . . 5 6 . . . 1 1 . 1 3 1 . 1 4 . . Wheel 10 | 2 . . 1 . 1 2 . . . . . . . . . 1 . 1 2 . . Hover . | . . . . . . . . . . . . . . . . . . . . . . Flight 10 | . . . . . . 1 . . . . . 1 . . . 1 . . 6 1 . Utility 82 | 1 1 . 5 . . 14 3 2 . 3 2 5 2 1 25 2 . 2 7 1 6 Device 39 | . . . . . . 7 1 . . 3 . 5 1 . 10 2 . 1 4 1 4 Storage 5 | 1 . . 1 . . 1 . . . . . . . 1 1 . . . . . . Processor 15 | . . . . . . 4 1 1 . . . . . . 5 . . 1 2 . 1 Hackware 3 | . . . . . . . . 1 . . . . . . 2 . . . . . . Protection 20 | . 1 . 4 . . 2 1 . . . 2 . 1 . 7 . . . 1 . 1 Artifact . | . . . . . . . . . . . . . . . . . . . . . . Weapon 48 | 3 . 1 4 . 1 11 3 1 . 5 1 1 2 1 7 2 . . 3 1 1 Energy Gun 12 | 1 . . . . . 3 1 . . . . 1 . . 4 . . . 2 . . Energy Cannon 7 | . . . 1 . . 2 . . . 2 . . . . . . . . 1 . 1 Ballistic Gun 14 | 2 . . 1 . . 3 1 1 . 2 1 . . 1 . 2 . . . . . Ballistic Cannon 4 | . . . 1 . . 2 . . . . . . . . 1 . . . . . . Launcher 3 | . . 1 . . . . . . . 1 . . . . 1 . . . . . . Special Weapon 3 | . . . . . 1 . 1 . . . . . 1 . . . . . . . . Impact Weapon . | . . . . . . . . . . . . . . . . . . . . . . Slashing Weapon 3 | . . . 1 . . 1 . . . . . . . . . . . . . 1 . Piercing Weapon 2 | . . . . . . . . . . . . . 1 . 1 . . . . . . Special Melee Weapon . | . . . . . . . . . . . . . . . . . . . . . . Unidentified Prototypes 9 | . . . . . . . . . . . 1 . 3 . 2 1 . . 1 1 . Parts Lost 115 | . . . 3 . . 23 10 . 1 3 3 9 . . 33 4 . 3 1 . 22 Power 17 | . . . 1 . . 5 2 . . . 1 1 . . 5 . . . 1 . 1 Propulsion 28 | . . . . . . 7 2 . . 2 1 2 . . 5 1 . 1 . . 7 Utility 46 | . . . 1 . . 5 3 . . . . 5 . . 18 2 . 1 . . 11 Weapon 24 | . . . 1 . . 6 3 . 1 1 1 1 . . 5 1 . 1 . . 3 Highest Loss Streak 18 | . . . 1 . . 15 6 . 1 1 1 4 . . 14 4 . 3 1 . 18 To Critical Strikes . | . . . . . . . . . . . . . . . . . . . . . . Average Backups 9 | . 3 6 5 7 14 8 9 11 12 11 12 11 11 13 14 1 1 1 2 4 3 Power . | . . . . 1 1 . . . . . . . . . 1 . . . . . . Propulsion 1 | . . . . 1 2 1 . 2 2 3 2 1 1 1 1 . . . . 1 . Utility 4 | . 1 3 3 4 8 3 5 4 3 5 6 6 7 7 6 . . . . . 1 Weapon 2 | . 1 1 2 1 1 1 2 4 5 2 2 1 2 3 3 . . . . . . Tool/Special . | . . . . . . . . . . . . . . . . . . . . . . Unused Backups 24 | . . . 3 . 3 8 . . . 1 2 . . 1 4 . . . 1 . 1 Power . | . . . . . . . . . . . . . . . . . . . . . . Propulsion 3 | . . . . . 2 . . . . . . . . . 1 . . . . . . Utility 13 | . . . 2 . 1 4 . . . 1 2 . . . 3 . . . . . . Weapon 3 | . . . 1 . . . . . . . . . . 1 . . . . 1 . . Tool/Special 5 | . . . . . . 4 . . . . . . . . . . . . . . 1 Average Slot Usage (%) 82 | . 94 100 88 85 74 78 81 81 83 86 79 75 77 95 85 34 47 61 81 87 76 Engine 6 | . 14 14 9 14 14 6 5 5 5 5 6 7 5 5 1 . . . . . . Core 1 | . . . . . . 3 . . . 3 3 . . 2 2 . . 3 1 . . Reactor 1 | . . . . . . . . . . . . . . . 5 . . . 2 3 3 Treads 1 | . . . . . . . . . . . . 2 5 5 7 . . . 2 . . Leg 5 | . . . . . . 10 23 25 24 17 10 9 5 8 2 1 5 8 10 . . Wheel 10 | . 28 28 28 28 17 6 . . . . . . . . . 1 5 7 9 2 6 Flight 2 | . . . . . . . . . . . . . 5 5 . . . . 5 28 22 Device 8 | . . . . . . 11 5 10 10 10 1 10 17 23 23 2 5 8 14 19 16 Storage 6 | . 14 14 10 14 14 4 5 5 5 5 5 5 5 5 4 . . . . . . Processor 11 | . . . . . . 17 21 25 25 26 29 18 11 11 10 16 15 18 18 17 14 Hackware 2 | . . . . . . . . 1 5 5 5 5 5 5 5 10 10 9 4 4 3 Protection 5 | . 8 14 11 . . 5 6 . . . 4 1 2 5 8 . . . 2 2 3 Energy Gun 2 | . . . . . . 3 7 5 5 1 . 2 1 5 6 . . . 3 7 3 Energy Cannon 4 | . . . 7 14 14 3 . . . 2 4 5 1 4 1 . . . 3 . . Ballistic Gun 2 | . 28 23 3 . . 1 2 4 3 5 3 . . . . 1 5 3 . . . Ballistic Cannon 3 | . . . 9 14 5 2 . . . . . . . . 1 . . . . . . Launcher 1 | . . 4 4 . . . . . . . . . . . . . . . . . . Special Weapon 1 | . . . . . 8 . 1 . . . . . 3 . . . . . . . . Peak Build Rating 157 | 6 7 9 36 36 28 63 84 91 102 95 90 93 83 95 122 47 47 78 153 150 157 Average Rating 62 | 4 6 8 15 35 24 47 73 87 90 90 87 72 69 90 107 36 47 74 118 135 125 On Entrance 58 | . 6 7 9 36 19 28 50 82 91 85 88 87 67 83 95 36 47 47 63 129 140 Naked Turns . | . . . . . . . . . . . . . . . . . . . . . . Heaviest Build 102 | 12 17 19 60 60 60 85 50 40 40 51 68 83 59 69 102 5 4 11 78 44 41 Greatest Support 150 | 32 32 32 36 36 36 60 115 115 50 70 70 70 20 45 150 16 16 50 54 52 70 Greatest Overweight (x) 4 | . . . 1 1 3 4 2 . . 1 1 2 2 2 1 1 . . 1 . . Average Overweight (x) . | . . . . 1 1 . . . . . . . 2 1 . . . . . . . Largest Inventory Capacity 25 | 8 8 8 25 25 25 25 15 15 15 15 15 15 15 15 20 5 5 5 5 5 5 Average Capacity 14 | 6 8 8 10 25 25 15 15 15 15 15 15 15 15 15 17 5 5 5 5 5 5 Most Carried 25 | 1 6 8 25 25 25 24 15 14 15 15 15 15 15 15 20 5 2 2 5 5 5 Average Carried 12 | . 4 7 8 24 18 12 12 13 14 14 14 14 13 15 16 2 2 2 3 4 4 Final Capacity 25 | 8 8 8 25 25 25 15 15 15 15 15 15 15 15 15 5 5 5 5 5 5 5 Final Carried 25 | 1 6 8 25 11 25 15 15 14 15 15 15 14 15 15 5 2 2 2 5 5 1 Class Distribution -------------------- 45% | Mutant 30% | Scavenger-Mutant 11% | Derelict-Mutant 4% | Subdweller-Mutant 3% | Hacker-Mutant Dominant Class ---------------- Mutant | -10/Materials Mutant | -10/Mines Mutant | -10/Subcaves Mutant | -9/Recycling Mutant | -9/Scraptown Scavenger-Mutant | -6/Factory Scavenger-Mutant | -6/Garrison Scavenger-Mutant | -5/Factory Scavenger-Mutant | -5/Waste Scavenger-Mutant | -5/Factory Mutant | -5/Upper Caves Scavenger-Mutant | -5/Upper Caves Scavenger-Mutant | -5/Zhirov Derelict-Mutant | -4/Proximity Caves Derelict-Mutant | -4/Factory Hacker-Mutant | -4/Upper Caves Hacker-Mutant | -4/Upper Caves Hacker-Mutant | -3/Research Derelict-Mutant | -2/Research Scavenger-Mutant | -2/Quarantine Ninja | -1/Access Resources | -11 -10 -10 -10 -9 -9 -6 -6 -5 -5 -5 -5 -5 -5 -4 -4 -4 -4 -3 -2 -2 -1 ----------- Run | Yrd Mat Min Sub Rec Scr Fac Gar Fac Was Fac Upp Upp Zhi Pro Fac Upp Upp Res Res Qua Acc Matter Collected 4448 | 202 77 43 514 88 37 688 378 . . 345 250 269 89 111 707 219 . . 413 . 18 Remotely 10 | . . . . . . 10 . . . . . . . . . . . . . . . Salvage Created 7967 | . . 19 656 103 26 1038 809 . . 666 346 753 363 58 2914 25 . . 191 . . Parts 371 | . . 2 46 7 2 60 32 . . 50 15 30 2 2 117 1 . . 5 . . Haulers Intercepted 3 | . . . . . . . . . . . . . . . 2 . . . 1 . . Recyclers Shooed 6 | . . . . . . . . . . 2 . . . . 4 . . . . . . Parts Field Recycled . | . . . . . . . . . . . . . . . . . . . . . . Retrieved Matter . | . . . . . . . . . . . . . . . . . . . . . . Parts Self-Destructed 73 | . . . 19 . 1 . . . . . 11 26 2 5 . 9 . . . . . Prevented . | . . . . . . . . . . . . . . . . . . . . . . Kills | -11 -10 -10 -10 -9 -9 -6 -6 -5 -5 -5 -5 -5 -5 -4 -4 -4 -4 -3 -2 -2 -1 ------- Run | Yrd Mat Min Sub Rec Scr Fac Gar Fac Was Fac Upp Upp Zhi Pro Fac Upp Upp Res Res Qua Acc Combat Hostiles Destroyed 164 | . . 3 24 2 . 22 16 . . 23 10 20 . . 42 . . . 2 . . Melee 5 | . . . . . . 4 . . . . . . . . 1 . . . . . . Guns 53 | . . . 1 . . 5 12 . . 4 4 . . . 27 . . . . . . Cannons 52 | . . . 12 2 . 11 . . . 2 2 11 . . 10 . . . 2 . . AOE 50 | . . 3 11 . . 2 . . . 17 4 9 . . 4 . . . . . . Classes Destroyed 18 | . . 1 4 . . 5 1 . . 1 1 1 . . 4 . . . . . . Worker 8 | . . . . . . 4 . . . . . . . . 4 . . . . . . Builder 1 | . . . . . . . . . . . . . . . 1 . . . . . . Tunneler 2 | . . . . . . . . . . . . . . . 2 . . . . . . Hauler 3 | . . . . . . . . . . . . . . . 2 . . . 1 . . Recycler 2 | . . . . . . . . . . 1 . . . . 1 . . . . . . Turret 2 | . . . 2 . . . . . . . . . . . . . . . . . . Watcher 6 | . . . . . . 2 . . . 3 . . . . 1 . . . . . . Swarmer 46 | . . 3 4 . . 7 2 . . 19 4 6 . . 1 . . . . . . Saboteur 1 | . . . . . . . . . . . . . . . 1 . . . . . . Grunt 55 | . . . 4 . . 7 9 . . . 4 10 . . 21 . . . . . . Brawler 2 | . . . . . . . . . . . . 1 . . 1 . . . . . . Duelist 7 | . . . . . . 1 . . . . 1 2 . . 3 . . . . . . Sentry 8 | . . . 1 2 . 2 . . . 1 . 1 . . 1 . . . . . . Specialist 2 | . . . . . . . 2 . . . . . . . . . . . . . . Hunter 12 | . . . . . . 3 1 . . . . . . . 8 . . . . . . Programmer 15 | . . . . . . 2 2 . . 3 . . . . 6 . . . 2 . . Behemoth 1 | . . . . . . . . . . . 1 . . . . . . . . . . Subdweller 15 | . . . 15 . . . . . . . . . . . . . . . . . . Decomposer 3 | . . . . . . . . . . . . . . 3 . . . . . . . Best Kill Streak 15 | . . 3 4 1 . 6 7 . . 15 4 6 . . 6 . . . 2 . . Combat Bots Only 14 | . . 3 4 1 . 6 7 . . 14 4 6 . . 6 . . . 1 . . Max Kills in Single Turn 4 | . . 2 2 1 . 2 2 . . 4 2 3 . 1 3 . . . 1 . . Gunslinging 1 | . . . . . . . 1 . . . . . . . . . . . . . . Exploded 4 | . . 2 2 . . 1 . . . 4 2 3 . . 3 . . . . . . Melee 1 | . . . . . . 1 . . . . . . . . 1 . . . . . . Uniques/NPCs Destroyed . | . . . . . . . . . . . . . . . . . . . . . . Combat | -11 -10 -10 -10 -9 -9 -6 -6 -5 -5 -5 -5 -5 -5 -4 -4 -4 -4 -3 -2 -2 -1 -------- Run | Yrd Mat Min Sub Rec Scr Fac Gar Fac Was Fac Upp Upp Zhi Pro Fac Upp Upp Res Res Qua Acc Hostile Shots Fired 1644 | . . 1 71 2 . 295 123 . 1 98 52 94 . . 448 37 . 48 43 3 328 Missed 554 | . . 1 23 . . 74 38 . . 43 19 33 . . 127 12 . 13 14 2 155 Hits 1090 | . . . 48 2 . 221 85 . 1 55 33 61 . . 321 25 . 35 29 1 173 Melee 26 | . . . . . . 2 . . 1 . 1 . . . 22 . . . . . . Projectile 1064 | . . . 48 2 . 219 85 . . 55 32 61 . . 299 25 . 35 29 1 173 AOE 3 | . . . 1 . . . . . . . . . . . 2 . . . . . . Critical Strikes 36 | . . . 3 . . 2 2 . . 1 . . . . 21 1 . . . . 6 Actively Blocked 5 | . . . . . . . . . . . . . . . 2 . . . . . 3 Part Disruptions 1 | . . . . . . . 1 . . . . . . . . . . . . . . Damage Taken 19581 | . . . 1039 28 . 3325 1524 . 32 915 580 1182 . . 5574 521 . 822 626 37 3376 Core 4307 | . . . 204 . . 609 238 . . 124 44 154 . . 769 350 . 113 86 . 1616 Absorbed by Shields 690 | . . . . . . 224 . . . . . . . . 359 . . . 107 . . Reduced by Siege Mode 395 | . . . . . . . . . . . . . . . 395 . . . . . . Redirected to Shielding 536 | . . . . . . 12 200 . . . . . . . 221 . . . . . 103 Ignored by Resistances 816 | . . . . . . 35 8 . 9 . . 145 . . 527 . . . 92 . . Regen/Repaired (Parts) 248 | . . . . . . . . . . . . . . . . . . . . 248 . Core Remaining (%) 53 | 100 . . . . 18 . . . . . . . . 67 . . 2 91 . 94 . Volleys Fired 476 | . . 2 50 5 6 58 64 . . 26 23 34 7 6 156 3 . . 29 3 4 Largest 2 | . . 1 2 2 1 2 2 . . 2 2 2 1 2 2 1 . . 2 2 1 Hottest 328 | . . 33 120 120 80 155 155 . . 118 114 165 7 165 328 23 . . 208 176 120 Shots Fired 780 | . . 2 86 10 6 95 102 . . 45 40 46 7 11 282 4 . . 34 6 4 Gun 440 | . . . 16 . . 38 92 . . 25 16 3 . 5 226 4 . . 9 6 . Cannon 268 | . . . 56 10 4 52 . . . 13 21 34 . 6 51 . . . 17 . 4 Launcher 41 | . . 2 14 . . 3 . . . 7 3 9 . . 3 . . . . . . Special 31 | . . . . . 2 2 10 . . . . . 7 . 2 . . . 8 . . Kinetic 218 | . . . 52 5 . 50 28 . . 22 16 . . . 41 4 . . . . . Thermal 472 | . . . 20 5 4 22 64 . . 16 21 37 . 11 236 . . . 26 6 4 Explosive 41 | . . 2 14 . . 3 . . . 7 3 9 . . 3 . . . . . . Electromagnetic 18 | . . . . . . 18 . . . . . . . . . . . . . . . Robot Hit Streak 28 | . . 1 8 7 7 15 28 . . 22 22 7 9 3 18 2 . . 12 3 . Robot Miss Streak 5 | . . . 3 2 . 5 5 . . 3 4 1 . 3 4 1 . . 5 1 . Penetration Max 1 | . . . . . . 1 . . . 1 . . . . . . . . . . . Secondary Targets 7 | . . . . . . . 4 . . . . . . . 3 . . . . . . Max Gunslinging Chain 1 | . . . . . . . 1 . . . . . . . 1 . . . . . . Shots Hit Robots 544 | . . 1 49 6 6 74 79 . . 28 33 32 12 3 197 2 . . 19 3 . Core Hits 370 | . . 4 31 2 2 52 53 . . 43 29 42 5 3 99 1 . . 3 1 . Critical Kills 4 | . . . 2 . . . 1 . . . . . . . 1 . . . . . . Critical Parts Destroyed 4 | . . . 2 . . . 1 . . . . . . . 1 . . . . . . Critical Strikes 28 | . . . 4 . . 1 9 . . . . . 1 . 12 . . . 1 . . Burn 12 | . . . . . . 1 7 . . . . . . . 3 . . . 1 . . Destroy 8 | . . . 4 . . . 2 . . . . . . . 2 . . . . . . Blast 7 | . . . . . . . . . . . . . . . 7 . . . . . . Impale 1 | . . . . . . . . . . . . . 1 . . . . . . . . Melee Attacks 54 | . . . 19 . . 10 . . . . . . 7 . 3 . . . . . 15 Impact . | . . . . . . . . . . . . . . . . . . . . . . Slashing 44 | . . . 19 . . 10 . . . . . . . . . . . . . . 15 Piercing 10 | . . . . . . . . . . . . . 7 . 3 . . . . . . Sneak Attacks 1 | . . . . . . 1 . . . . . . . . . . . . . . . Combat Hostiles . | . . . . . . . . . . . . . . . . . . . . . . Follow-up Attacks . | . . . . . . . . . . . . . . . . . . . . . . Damage Inflicted 23506 | . . 243 1851 149 107 2585 1529 4 . 2449 1627 2838 514 114 8775 29 . 9 606 77 . Guns 9652 | . . . 132 . . 673 1521 . . 353 400 68 . 68 6195 29 . . 136 77 . Cannons 5989 | . . . 889 149 107 1006 . . . 378 579 827 . 46 1538 . . . 470 . . Explosions 6707 | . . 243 830 . . 479 . . . 1711 648 1943 . . 853 . . . . . . Melee 1016 | . . . . . . 415 . . . . . . 514 . 87 . . . . . . Ramming 142 | . . . . . . 12 8 4 . 7 . . . . 102 . . 9 . . . Kinetic 4099 | . . . 695 43 . 870 482 . . 308 400 . . . 1272 29 . . . . . Thermal 11989 | . . . 326 106 107 702 1039 . . 423 579 895 . 114 7015 . . . 606 77 . Explosive 5805 | . . 243 830 . . 198 . . . 1644 648 1943 . . 299 . . . . . . Electromagnetic 455 | . . . . . . 388 . . . 67 . . . . . . . . . . . Impact . | . . . . . . . . . . . . . . . . . . . . . . Slashing 415 | . . . . . . 415 . . . . . . . . . . . . . . . Piercing 601 | . . . . . . . . . . . . . 514 . 87 . . . . . . Highest Corruption 14 | . . . . . . 1 3 . 10 10 4 4 4 4 14 14 14 . . . 5 Average Corruption 5 | . . . . . . 1 2 . 10 7 4 4 4 4 8 14 14 . . . 2 Corruption Purged 10 | . . . . . . . . . . 10 . . . . . . . . . . . Corruption Blocked 2 | . . . . . . . . . . . . . . . . . . . 2 . . Effects 163 | . . . . . . 3 17 . 3 12 17 22 11 19 43 12 3 . . . 1 Message Errors 41 | . . . . . . 1 3 . 2 5 3 6 4 3 11 3 . . . . . Matter Fused 32 | . . . . . . . 3 . 1 1 4 5 2 5 6 5 . . . . . Heat Flow Errors 17 | . . . . . . . 1 . . . 3 1 1 2 7 . 1 . . . 1 Energy Discharges 21 | . . . . . . 1 4 . . 1 4 2 2 3 4 . . . . . . Parts Rejected 4 | . . . . . . 1 1 . . . . 1 . . 1 . . . . . . Data Loss (minor) 20 | . . . . . . . 3 . . 2 2 1 2 3 5 1 1 . . . . Data Loss (major) 6 | . . . . . . . . . . 1 . . . 1 2 1 1 . . . . Misfires 12 | . . . . . . . 1 . . 1 1 5 . 1 2 1 . . . . . Alerts 4 | . . . . . . . . . . 1 . 1 . . 2 . . . . . . Misdirections 1 | . . . . . . . . . . . . . . . . 1 . . . . . Weapon Failures 5 | . . . . . . . 1 . . . . . . 1 3 . . . . . . Overload Shots 33 | . . . . . . . . . . . . . . . 33 . . . . . . Overflow Damage 487 | . . . 34 2 2 71 . . . 156 37 72 . . 66 . . . 47 . . Projectiles 176 | . . . 18 2 2 . . . . 56 . 16 . . 35 . . . 47 . . Explosions 240 | . . . 16 . . . . . . 100 37 56 . . 31 . . . . . . Melee 71 | . . . . . . 71 . . . . . . . . . . . . . . . Knockbacks 20 | . . . 4 . . 5 . . . . . . . . 11 . . . . . . Impact . | . . . . . . . . . . . . . . . . . . . . . . Kinetic 17 | . . . 4 . . 5 . . . . . . . . 8 . . . . . . Secondary 3 | . . . . . . . . . . . . . . . 3 . . . . . . Self-Inflicted Damage 263 | . . . 114 . . 60 . . . . . 89 . . . . . . . . . Shots 6 | . . . 3 . . 1 . . . . . 2 . . . . . . . . . Rammed 9 | . . . . . . . . . . . . . . . 9 . . . . . . Targets Rammed 16 | . . . . . . 2 1 1 . 1 . . . . 10 . . 1 . . . Kicked 6 | . . . . . . 2 1 1 . 1 . . . . . . . 1 . . . Crushed 1 | . . . . . . . . . . . . . . . 1 . . . . . . Highest Temperature 545 | . . . 17 99 120 266 342 . . . 374 167 91 204 545 326 221 . 117 . 362 Average Temperature 113 | . . . 8 39 64 66 114 . . . 111 29 62 92 157 176 221 . 39 . 118 Received Heat Transfer 3058 | . . . 159 9 . 304 570 . . 60 132 354 . . 945 387 . 45 48 . 45 Effects 18 | . . . . . . 1 . . . . 4 . . . 10 1 . . . . 2 Shutdowns 6 | . . . . . . . . . . . . . . . 5 . . . . . 1 Energy Bleed 3 | . . . . . . 1 . . . . . . . . . 1 . . . . 1 Interference 7 | . . . . . . . . . . . 4 . . . 3 . . . . . . Damage (major) 2 | . . . . . . . . . . . . . . . 2 . . . . . . Siege Activations 4 | . . . . . . . . . . . . . . . 4 . . . . . . Total Turns 128 | . . . . . . . . . . . . . . . 128 . . . . . . Longest Duration 42 | . . . . . . . . . . . . . . . 42 . . . . . . Martial Activations . | . . . . . . . . . . . . . . . . . . . . . . Shielding Activations . | . . . . . . . . . . . . . . . . . . . . . . Robots Disrupted . | . . . . . . . . . . . . . . . . . . . . . . Combat Hostiles . | . . . . . . . . . . . . . . . . . . . . . . Robots Corrupted . | . . . . . . . . . . . . . . . . . . . . . . Combat Hostiles . | . . . . . . . . . . . . . . . . . . . . . . Parts Fried 2 | . . . . . . 2 . . . . . . . . . . . . . . . Impact Corruptions . | . . . . . . . . . . . . . . . . . . . . . . Robots Melted 4 | . . . . . . . 4 . . . . . . . . . . . . . . Combat Hostiles 4 | . . . . . . . 4 . . . . . . . . . . . . . . Parts Melted 33 | . . . . . . 3 13 . . . 1 . . . 12 . . . 4 . . Heat Transferred 14600 | . . . 444 148 148 1074 2758 . . 470 592 963 . 111 7152 . . . 629 111 . Parts Sabotaged . | . . . . . . . . . . . . . . . . . . . . . . Parts Stolen . | . . . . . . . . . . . . . . . . . . . . . . Parts Stripped . | . . . . . . . . . . . . . . . . . . . . . . Power Chain Reactions . | . . . . . . . . . . . . . . . . . . . . . . Alert | -11 -10 -10 -10 -9 -9 -6 -6 -5 -5 -5 -5 -5 -5 -4 -4 -4 -4 -3 -2 -2 -1 ------- Run | Yrd Mat Min Sub Rec Scr Fac Gar Fac Was Fac Upp Upp Zhi Pro Fac Upp Upp Res Res Qua Acc Maximum Alert Level 3 | . . . . . . . 2 1 . 2 . . . . 3 . . . 1 . 2 Low Security (%) 64 | 100 100 100 . 100 . 100 21 . 100 48 . . . . 43 . . 100 47 100 35 Level 1 18 | . . . . . . . 45 100 . 9 . . . . 17 . . . 52 . 63 Level 2 16 | . . . . . . . 33 . . 42 . . . . 35 . . . . . . Level 3 1 | . . . . . . . . . . . . . . . 4 . . . . . . Level 4 . | . . . . . . . . . . . . . . . . . . . . . . Level 5 . | . . . . . . . . . . . . . . . . . . . . . . High Security . | . . . . . . . . . . . . . . . . . . . . . . Max Security . | . . . . . . . . . . . . . . . . . . . . . . Peak Influence 819 | . . 79 . 98 . 196 496 260 73 676 . . . . 819 . . 180 279 132 400 Initial 260 | . . . . 58 . . 82 260 73 . . . . . 150 . . 180 50 132 44 Average 189 | . . 15 . 51 . 95 322 238 39 292 . . . . 295 . . 153 171 67 207 Influence Increases 7123 | . 5 103 330 254 10 828 554 . . 944 275 513 15 . 1723 20 . . 461 120 968 Destroy 0b10 Robot/C 3500 | . . 60 220 40 . 440 340 . . 460 200 440 . . 840 . . . 220 . 240 Destroy 0b10 Robot/NC 170 | . . . . . 10 30 . . . 20 . . 15 . 55 5 . . 15 . 20 Destroy Leader 560 | . . 10 20 . . 104 30 . . 76 30 30 . . 166 . . . 44 . 50 Allied During Kill 95 | . . . . . . . 4 . . . . 13 . . . . . . 26 . 52 Trap Triggered on 0b10 40 | . . . . . . 20 20 . . . . . . . . . . . . . . Successful Hack 174 | . 5 14 . 16 . 44 . . . 54 . . . . 41 . . . . . . Select Force Hacks 180 | . . . . 180 . . . . . . . . . . . . . . . . . Disable Machine 510 | . . . . 15 . 60 30 . . 240 . . . . 120 . . . 15 . 30 Anti-Garrison Action 100 | . . . . . . . 100 . . . . . . . . . . . . . . Destroy Structure 594 | . . 19 . 3 . 40 30 . . 94 . . . . 216 . . . 111 . 81 Advance Influence 150 | . . . . . . . . . . . . . . . 150 . . . . . . Partial Spotted 150 | . . . . . . . . . . . . . . . 15 . . . 30 45 60 Lose Combat Pursuer 900 | . . . 90 . . 90 . . . . 45 30 . . 120 15 . . . 75 435 Influence Decreases 6765 | . 5 82 229 334 52 710 176 286 210 300 617 587 243 . 906 494 76 177 316 280 685 Entered New Map 1684 | . . . 12 64 42 . 36 236 137 . 239 59 228 . . 304 66 87 40 103 31 Time Decay 3585 | . 5 82 217 270 10 480 . 50 23 260 318 428 15 . 530 150 10 60 246 177 254 Lost Part 1120 | . . . . . . 230 100 . 10 30 30 90 . . 330 40 . 30 10 . 220 Lost Ally 376 | . . . . . . . 40 . 40 10 30 10 . . 46 . . . 20 . 180 Squads Dispatched 51 | . . . . . . 13 . . . 4 . 1 . . 15 . . . 5 3 10 Investigation 17 | . . . . . . 7 . . . 1 . . . . 3 . . . 2 . 4 Extermination 13 | . . . . . . 3 . . . 1 . . . . 3 . . . 2 1 3 Reinforcement 16 | . . . . . . 3 . . . 2 . . . . 5 . . . 1 2 3 Assault 2 | . . . . . . . . . . . . 1 . . 1 . . . . . . Garrison 3 | . . . . . . . . . . . . . . . 3 . . . . . . Intercept . | . . . . . . . . . . . . . . . . . . . . . . Searches Triggered . | . . . . . . . . . . . . . . . . . . . . . . Construction Impeded 4 | . . . . . . 1 . . . . . . . . 2 . . . . . 1 Haulers Reinforced 2 | . . . . . . . . . . . . . . . 1 . . . 1 . . Active Scanning Responses . | . . . . . . . . . . . . . . . . . . . . . . Cargo Convoy Interrupts . | . . . . . . . . . . . . . . . . . . . . . . Stealth | -11 -10 -10 -10 -9 -9 -6 -6 -5 -5 -5 -5 -5 -5 -4 -4 -4 -4 -3 -2 -2 -1 --------- Run | Yrd Mat Min Sub Rec Scr Fac Gar Fac Was Fac Upp Upp Zhi Pro Fac Upp Upp Res Res Qua Acc Distress Signals 13 | . . 1 . . . 3 . . . 1 . . . . 3 . . . 1 . 4 Communications Jammed 3 | . . . . . . . . . . . . . . . . . . . . 2 1 Distress Signals 3 | . . . . . . . . . . . . . . . . . . . . 2 1 Times Spotted 321 | . . 2 29 1 . 42 16 . 3 27 13 25 . 1 68 17 . 8 11 9 49 Peak Tracking Total 18 | . 2 2 6 . . 8 6 . 4 6 5 7 . 1 9 11 . 8 7 7 18 Tactical Retreats 31 | . . . 2 . . 6 . . 1 . 2 2 . . 5 1 . . . 1 11 Traps | -11 -10 -10 -10 -9 -9 -6 -6 -5 -5 -5 -5 -5 -5 -4 -4 -4 -4 -3 -2 -2 -1 ------- Run | Yrd Mat Min Sub Rec Scr Fac Gar Fac Was Fac Upp Upp Zhi Pro Fac Upp Upp Res Res Qua Acc Traps Triggered 15 | . . . 4 . . 3 2 1 . . . . . . 1 . . 1 1 . 2 Indirectly . | . . . . . . . . . . . . . . . . . . . . . . Trap Hack Attempts . | . . . . . . . . . . . . . . . . . . . . . . Triggered . | . . . . . . . . . . . . . . . . . . . . . . Disarmed . | . . . . . . . . . . . . . . . . . . . . . . Reprogrammed . | . . . . . . . . . . . . . . . . . . . . . . Reused 6 | . . . 2 . . 2 2 . . . . . . . . . . . . . . Traps Extracted . | . . . . . . . . . . . . . . . . . . . . . . Installed 8 | . . . 2 . . 2 3 . . 1 . . . . . . . . . . . Triggered 4 | . . . . . . 2 2 . . . . . . . . . . . . . . Most Traps Carried 4 | . . 2 2 . 3 3 4 1 1 1 . . . . . . . . . . . Machines | -11 -10 -10 -10 -9 -9 -6 -6 -5 -5 -5 -5 -5 -5 -4 -4 -4 -4 -3 -2 -2 -1 ---------- Run | Yrd Mat Min Sub Rec Scr Fac Gar Fac Was Fac Upp Upp Zhi Pro Fac Upp Upp Res Res Qua Acc Machines Disabled 39 | . . . 3 1 . 4 3 . . 16 . 1 . . 8 . . . 1 . 2 Max in Single Turn 12 | . . . 1 1 . 4 1 . . 12 . 1 . . 2 . . . . . 1 Garrison Access 2 | . . . . . . . . 1 . . . . . . 1 . . . . . . Garrison Relay 1 | . . . . . . . 1 . . . . . . . . . . . . . . Machines Repaired . | . . . . . . . . . . . . . . . . . . . . . . Machines Dismantled . | . . . . . . . . . . . . . . . . . . . . . . Machines Sabotaged . | . . . . . . . . . . . . . . . . . . . . . . Overloaded Fab Kills . | . . . . . . . . . . . . . . . . . . . . . . Hacking | -11 -10 -10 -10 -9 -9 -6 -6 -5 -5 -5 -5 -5 -5 -4 -4 -4 -4 -3 -2 -2 -1 --------- Run | Yrd Mat Min Sub Rec Scr Fac Gar Fac Was Fac Upp Upp Zhi Pro Fac Upp Upp Res Res Qua Acc Machines Accessed 88 | . 2 2 4 12 3 16 1 1 . 7 1 . 4 . 11 . . 1 4 8 11 Terminals 33 | . 2 2 . 6 . 5 1 . . 2 . . . . 3 . . 1 1 6 4 Fabricators 4 | . . . . . . 1 . . . . . . . . 1 . . . 1 . 1 Repair Stations 7 | . . . . . . . . . . 2 . . . . 3 . . . . 2 . Recycling Units 20 | . . . . 6 . 6 . . . 1 . . . . 3 . . . 1 . 3 Scanalyzers 2 | . . . . . . 1 . . . 1 . . . . . . . . . . . Garrison Access 10 | . . . . . . 3 . 1 . 1 . . . . 1 . . . 1 . 3 Total Hacks 218 | . 6 4 7 27 4 51 2 1 . 19 1 . 17 . 25 . . 1 13 22 18 Successful 104 | . 2 2 7 19 4 19 . 1 . 5 1 . 17 . 13 . . . 2 9 3 Failed 114 | . 4 2 . 8 . 32 2 . . 14 . . . . 12 . . 1 11 13 15 Catastrophic 26 | . . 1 . 1 . 5 1 . . 4 . . . . 1 . . 1 1 4 7 Database Lockouts . | . . . . . . . . . . . . . . . . . . . . . . Manual 76 | . 6 4 . 21 . 18 . . . 5 . . . . 12 . . 1 3 2 4 Terminals 74 | . 6 4 . 14 . 12 2 . . 4 . . . . 13 . . 1 2 10 6 Fabricators 10 | . . . . . . 2 . . . . . . . . 1 . . . 6 . 1 Repair Stations 23 | . . . . . . . . . . 6 . . . . 5 . . . . 12 . Recycling Units 44 | . . . . 13 . 17 . . . 3 . . . . 4 . . . 3 . 4 Scanalyzers 14 | . . . . . . 11 . . . 3 . . . . . . . . . . . Garrison Access 24 | . . . . . . 9 . 1 . 3 . . . . 2 . . . 2 . 7 Terminal Hacks 36 | . . 2 7 . 4 1 . . . 1 1 . 17 . 1 . . . . 2 . Record 13 | . . . 4 . 3 . . . . . . . 5 . . . . . . 1 . Part Schematic 4 | . . . . . . . . . . . . . 4 . . . . . . . . Robot Analysis 5 | . . 1 . . . . . . . . . . 4 . . . . . . . . Prototype ID Bank 4 | . . . . . . . . . . . . . 4 . . . . . . . . Open Door 2 | . . . 1 . . . . . . . 1 . . . . . . . . . . Branch Access Points 2 | . . . . . . . . . . 1 . . . . 1 . . . . . . Emergency Access Points 1 | . . . . . . . . . . . . . . . . . . . . 1 . Patrol Status 1 | . . 1 . . . . . . . . . . . . . . . . . . . Registered Components 1 | . . . . . . 1 . . . . . . . . . . . . . . . Proto ID Catalog 2 | . . . 1 . 1 . . . . . . . . . . . . . . . . Release Object 1 | . . . 1 . . . . . . . . . . . . . . . . . . Fabricator Hacks 3 | . . . . . . 1 . . . . . . . . 1 . . . 1 . . Network Status 3 | . . . . . . 1 . . . . . . . . 1 . . . 1 . . Repair Station Hacks 11 | . . . . . . . . . . 2 . . . . 2 . . . . 7 . Scan Component 7 | . . . . . . . . . . 2 . . . . 1 . . . . 4 . Repair 4 | . . . . . . . . . . . . . . . 1 . . . . 3 . Recycling Unit Hacks 9 | . . . . 5 . 3 . . . . . . . . 1 . . . . . . Report Inventory 9 | . . . . 5 . 3 . . . . . . . . 1 . . . . . . Scanalyzer 8 | . . . . . . 7 . . . 1 . . . . . . . . . . . Insert Component 4 | . . . . . . 3 . . . 1 . . . . . . . . . . . Analyze 4 | . . . . . . 4 . . . . . . . . . . . . . . . Garrison Access Hacks 3 | . . . . . . 1 . 1 . . . . . . 1 . . . . . . Unlock Access 1 | . . . . . . 1 . . . . . . . . . . . . . . . Seal Access 2 | . . . . . . . . 1 . . . . . . 1 . . . . . . Unauthorized Hacks 34 | . 2 . . 14 . 6 . . . 1 . . . . 7 . . . 1 . 3 Terminals 16 | . 2 . . 8 . 1 . . . 1 . . . . 4 . . . . . . Botnet 6 | . 1 . . 3 . . . . . . . . . . 2 . . . . . . Operators 1 | . . . . . . . . . . . . . . . 1 . . . . . . Skim 9 | . 1 . . 5 . 1 . . . 1 . . . . 1 . . . . . . Fabricators . | . . . . . . . . . . . . . . . . . . . . . . Repair Stations . | . . . . . . . . . . . . . . . . . . . . . . Recycling Units 17 | . . . . 6 . 4 . . . . . . . . 3 . . . 1 . 3 Tunnel 6 | . . . . 6 . . . . . . . . . . . . . . . . . Fedlink 7 | . . . . . . 4 . . . . . . . . 3 . . . . . . Scrapoids 2 | . . . . . . . . . . . . . . . . . . . . . 2 Scraphulk 2 | . . . . . . . . . . . . . . . . . . . 1 . 1 Scanalyzers . | . . . . . . . . . . . . . . . . . . . . . . Garrison Access 1 | . . . . . . 1 . . . . . . . . . . . . . . . Watchers 1 | . . . . . . 1 . . . . . . . . . . . . . . . Data Cores Recovered . | . . . . . . . . . . . . . . . . . . . . . . Used . | . . . . . . . . . . . . . . . . . . . . . . Hacking Detections 61 | . 2 2 . 7 . 15 1 . . 7 . . . . 8 . . 1 3 7 8 Full Trace Events 6 | . . . . . . 2 1 . . 1 . . . . . . . . 1 . 1 Feedback Events . | . . . . . . . . . . . . . . . . . . . . . . Feedback Blocked . | . . . . . . . . . . . . . . . . . . . . . . Robot Schematics Acquired . | . . . . . . . . . . . . . . . . . . . . . . Robots Built . | . . . . . . . . . . . . . . . . . . . . . . Authchips . | . . . . . . . . . . . . . . . . . . . . . . Time . | . . . . . . . . . . . . . . . . . . . . . . Total Robot Build Rating . | . . . . . . . . . . . . . . . . . . . . . . Part Schematics Acquired 7 | . . . . . . 3 . . . . . . 4 . . . . . . . . Parts Built . | . . . . . . . . . . . . . . . . . . . . . . Authchips . | . . . . . . . . . . . . . . . . . . . . . . Time . | . . . . . . . . . . . . . . . . . . . . . . Total Part Build Rating . | . . . . . . . . . . . . . . . . . . . . . . Parts Repaired 3 | . . . . . . . . . . . . . . . . . . . . 3 . Time 313 | . . . . . . . . . . . . . . . 103 . . . . 210 . Parts Recycled . | . . . . . . . . . . . . . . . . . . . . . . Recycled Matter . | . . . . . . . . . . . . . . . . . . . . . . Retrieved Matter . | . . . . . . . . . . . . . . . . . . . . . . Retrieved Components . | . . . . . . . . . . . . . . . . . . . . . . Parts Scanalyzed 4 | . . . . . . 3 . . . 1 . . . . . . . . . . . Part Schematics Acquired 3 | . . . . . . 3 . . . . . . . . . . . . . . . Parts Damaged 1 | . . . . . . . . . . 1 . . . . . . . . . . . Bothacking | -11 -10 -10 -10 -9 -9 -6 -6 -5 -5 -5 -5 -5 -5 -4 -4 -4 -4 -3 -2 -2 -1 ------------ Run | Yrd Mat Min Sub Rec Scr Fac Gar Fac Was Fac Upp Upp Zhi Pro Fac Upp Upp Res Res Qua Acc Used RIF Installer . | . . . . . . . . . . . . . . . . . . . . . . Robots Hacked 13 | . . . . . 2 1 1 . . . . . 3 . 2 . . . 4 . . Non-combat 6 | . . . . . . 1 . . . . . . . . 2 . . . 3 . . Combat 7 | . . . . . 2 . 1 . . . . . 3 . . . . . 1 . . Robot Hacks Applied 15 | . . . . . 2 1 1 . . . . . 5 . 2 . . . 4 . . parse_system 10 | . . . . . 2 . 1 . . . . . 5 . . . . . 2 . . no_distress 4 | . . . . . . . . . . . . . . . 2 . . . 2 . . find_chute 1 | . . . . . . 1 . . . . . . . . . . . . . . . Relay Couplers Released 4 | . . . . . . . 4 . . . . . . . . . . . . . . Machine Destruction 4 | . . . . . . . 4 . . . . . . . . . . . . . . Fabnet Peak Effective % . | . . . . . . . . . . . . . . . . . . . . . . Robots Rewired 5 | . . . . . . . 4 . . . . 1 . . . . . . . . . Allies Hacked . | . . . . . . . . . . . . . . . . . . . . . . Hacks Repelled . | . . . . . . . . . . . . . . . . . . . . . . Allies | -11 -10 -10 -10 -9 -9 -6 -6 -5 -5 -5 -5 -5 -5 -4 -4 -4 -4 -3 -2 -2 -1 -------- Run | Yrd Mat Min Sub Rec Scr Fac Gar Fac Was Fac Upp Upp Zhi Pro Fac Upp Upp Res Res Qua Acc Total Allies 18 | . . . . . . . 4 . . . . 1 . . . 1 . . 1 . 11 Largest Group 5 | . . . . . . . 2 2 1 . . 1 1 1 1 . . . 1 . 5 Highest-Rated Group 323 | . . . . . . . 86 82 41 . . 29 29 29 29 . . . 139 . 323 Highest-Rated Ally 139 | . . . . . . . 43 41 41 . . 29 29 29 29 . . . 139 . 67 Total Orders 33 | . . . . . . . . . . 8 5 4 . . 14 . . . 2 . . ROAM 7 | . . . . . . . . . . 3 2 1 . . 1 . . . . . . FOLLOW 1 | . . . . . . . . . . . . . . . . . . . 1 . . AID 1 | . . . . . . . . . . . . . . . . . . . 1 . . EXPLORE 16 | . . . . . . . . . . 3 2 2 . . 9 . . . . . . RETURN 8 | . . . . . . . . . . 2 1 1 . . 4 . . . . . . Ally Attacks 183 | . . . . . . . 11 . 9 . . 17 . 1 . . . . 42 . 103 Total Damage 6513 | . . . . . . . 288 . 317 . . 286 . 19 . . . . 2604 . 2999 Kills 32 | . . . . . . . 1 . . . . 2 . . . . . . 11 . 18 Allies Corrupted 1 | . . . . . . . . . . 1 . . . . . . . . . . . Allies Melted . | . . . . . . . . . . . . . . . . . . . . . . Intel | -11 -10 -10 -10 -9 -9 -6 -6 -5 -5 -5 -5 -5 -5 -4 -4 -4 -4 -3 -2 -2 -1 ------- Run | Yrd Mat Min Sub Rec Scr Fac Gar Fac Was Fac Upp Upp Zhi Pro Fac Upp Upp Res Res Qua Acc Active Infowar (turns) 2053 | . . . . . . 5 . . . . . . . . 576 1 . 109 533 390 439 Sensors 319 | . . . . . . . . . . . . . . . . . . . . . 319 Terrain 1267 | . . . . . . . . . . . . . . . . . . 109 533 228 397 Machine Analysis 5 | . . . . . . 5 . . . . . . . . . . . . . . . Jamming 1620 | . . . . . . . . . . . . . . . 576 1 . . 232 390 421 Robot Analysis Total 5 | . . 1 . . . . . . . . . . 4 . . . . . . . . Derelict Logs Recovered 14 | . . 1 2 . 3 . . . . . 2 2 . 1 . 3 . . . . . Drone Launches 22 | . . . . . . . . . . 5 4 3 . . 10 . . . . . . Drone Recoveries 9 | . . . . . . . . . . 3 1 1 . . 4 . . . . . . Exploration | -11 -10 -10 -10 -9 -9 -6 -6 -5 -5 -5 -5 -5 -5 -4 -4 -4 -4 -3 -2 -2 -1 ------------- Run | Yrd Mat Min Sub Rec Scr Fac Gar Fac Was Fac Upp Upp Zhi Pro Fac Upp Upp Res Res Qua Acc Turns Passed 15677 | 48 154 553 2550 623 1693 1484 828 104 78 681 705 1043 436 539 2222 301 38 120 533 390 554 Spaces Moved 12320 | 38 148 536 2149 503 1333 964 484 90 80 540 530 506 149 247 949 498 43 119 479 576 1359 Core 675 | 2 . . . . . 53 . . . . . . . . 132 302 . . . . 186 Treads 714 | . . . . . . . . . . . . . . . 714 . . . . . . Legs 3313 | . . . . . . 582 484 90 80 540 530 506 149 247 103 . . 2 . . . Wheels 5679 | 36 148 536 2149 503 1333 326 . . . . . . . . . 92 43 117 396 . . Hover . | . . . . . . . . . . . . . . . . . . . . . . Flight 1939 | . . . . . . 3 . . . . . . . . . 104 . . 83 576 1173 Fastest Speed 5 | 50 100 100 100 117 115 35 90 90 90 90 105 105 260 190 50 35 90 90 12 18 5 Average Speed 105 | 97 100 100 106 117 124 118 122 109 90 101 110 172 260 207 157 54 90 94 86 24 32 Slowest Speed 270 | 100 100 100 117 117 145 250 270 114 90 180 180 260 260 260 270 100 90 120 110 30 50 Overloaded Moves 100 | . . . . . . . . . . . . . . . . . . . 14 . 86 Propulsion Burnouts . | . . . . . . . . . . . . . . . . . . . . . . Robots Hopped 12 | . . . . . . . . . . . . . . . . . . . . 3 9 Potential Cave-ins 2 | . . . . . . . . . . . . . . . 2 . . . . . . Cave-ins Triggered . | . . . . . . . . . . . . . . . . . . . . . . Teleports 1 | . . . . . . . . . . . . . . . . 1 . . . . . Exploration Rate (%) 49 | 3 29 98 95 99 87 32 54 2 69 21 77 73 60 44 35 70 8 5 15 68 51 Regions Visited 21 Branch Regions 11 Pre-discovered Areas 17 | . . 1 2 8 2 1 . . . . . . 3 . . . . . . . . Known Exits Taken 6 | . . . . . . 1 . . . 1 . . . 1 1 . 1 . 1 . . Unknown Exits Taken 12 | 1 1 1 1 1 1 . . . . . 1 1 1 . . 1 . 1 . 1 . Scrap Searched 26 | . . 1 10 . 4 . . . . . 2 5 . 2 . 2 . . . . . Spaces Dug 34 | . . . . . . . . . . 1 . . . . 15 . . . 4 . 14 Terrain Destroyed 538 | . . 24 89 3 . 44 2 . . 47 54 126 . 6 121 . . . 7 . 15 Melee 14 | . . . . . . . . . . . . . . . . . . . . . 14 Projectile 83 | . . . 4 3 . 5 2 . . 1 5 9 . 6 40 . . . 7 . 1 AOE 441 | . . 24 85 . . 39 . . . 46 49 117 . . 81 . . . . . . Terrain Rammed . | . . . . . . . . . . . . . . . . . . . . . . Walls Destroyed . | . . . . . . . . . . . . . . . . . . . . . . Machines Disabled . | . . . . . . . . . . . . . . . . . . . . . . Actions | -11 -10 -10 -10 -9 -9 -6 -6 -5 -5 -5 -5 -5 -5 -4 -4 -4 -4 -3 -2 -2 -1 --------- Run | Yrd Mat Min Sub Rec Scr Fac Gar Fac Was Fac Upp Upp Zhi Pro Fac Upp Upp Res Res Qua Acc Total 14117 | 45 153 551 2287 528 1370 1177 617 96 87 623 613 632 183 262 1382 522 42 124 567 817 1439 Wait 676 | . . 7 4 19 . 65 25 . . 31 35 61 3 . 158 10 . . 10 222 26 Move 12279 | 37 147 535 2148 502 1332 964 483 90 79 539 529 505 148 246 948 497 42 118 478 569 1343 Hop 10 | . . . . . . . . . . . . . . . . . . . . 3 7 Pick Up 123 | . 4 4 17 1 21 17 13 1 3 5 8 6 2 1 10 1 . . 3 2 4 Fast Attach 145 | 7 1 . 5 . 2 26 9 1 1 4 2 6 5 4 27 7 . 5 20 7 6 Attach 73 | . . . 4 . . 10 7 1 . 3 4 8 4 . 19 2 . . 3 2 6 Detach 31 | 1 . . 3 . . 3 . . . 1 . 1 4 . 8 . . . 5 4 1 Swap 65 | . 1 1 9 . 1 13 6 1 . 7 3 . . 1 14 . . . 7 . 1 Drop 129 | . . 2 21 1 8 8 6 1 4 5 9 3 3 4 27 2 . . 12 5 8 Fire 476 | . . 2 50 5 6 58 64 . . 26 23 34 7 6 156 3 . . 29 3 4 Melee 54 | . . . 19 . . 10 . . . . . . 7 . 3 . . . . . 15 Ram . | . . . . . . . . . . . . . . . . . . . . . . Kick 5 | . . . . . . 1 1 1 . 1 . . . . . . . 1 . . . Crush 10 | . . . . . . . . . . . . . . . 10 . . . . . . Escape Stasis 18 | . . . . . . . . . . . . . . . . . . . . . 18 Rewire 9 | . . . 1 . . . . . . . . 8 . . . . . . . . . Trap 8 | . . . 2 . . 2 3 . . 1 . . . . . . . . . . . Miscellaneous 6 | . . . 4 . . . . . . . . . . . 2 . . . . . . Route ------- -11/Scrapyard -10/Materials -10/Mines (discovered 4 exits: [*Mat x2] / [*Exi] / *Sub) -10/Subcaves (discovered 3 exits: [*Mat x2] / *Rec) -9/Recycling (discovered 2 exits: [*Fac] / *Scr) -9/Scraptown (discovered 2 exits: *Fac x2) -6/Factory (discovered 3 exits: [*Low x2] / Gar) -6/Garrison -5/Factory -5/Waste -5/Factory (discovered 4 exits: *Upp x2 / Ext x2) -5/Upper Caves -5/Upper Caves (discovered 2 exits: *Fac / *Zhi) -5/Zhirov -4/Proximity Caves -4/Factory (discovered 6 exits: *Res x3 / *Upp x2 / Arm) -4/Upper Caves -4/Upper Caves -3/Research (discovered 3 exits: *Res / Tes x2) -2/Research -2/Quarantine -1/Access (discovered 1 exit: [Sur]) History --------- Turn | Location | Event 28 | -11/Scrapyard | Discovered new exit (range 16) 49 | -11/Scrapyard | Entered Materials 137 | -10/Materials | Discovered new exit (range 13) 203 | -10/Materials | Entered Mines 232 | -10/Mines | Learned location of Zion (-6) 244 | -10/Mines | Found a damaged Exp. Sensor Array with a note attached 246 | -10/Mines | Found Prototype Device 303 | -10/Mines | Found a hidden stash of uninstalled traps 327 | -10/Mines | Build established: Mutant 520 | -10/Mines | Discovered new exit (range 15) 574 | -10/Mines | Received a Rocket Launcher from a helpful Derelict 598 | -10/Mines | Discovered new exit (range 11) 651 | -10/Mines | Discovered new exit (range 7) 724 | -10/Mines | Deemed a non-threat by the Exiles lab entrance 724 | -10/Mines | Discovered new exit (range 5) 756 | -10/Mines | Entered Subcaves 909 | -10/Subcaves | Met a Zionite searching for "candidates" 1218 | -10/Subcaves | Discovered new exit (range 14) 1511 | -10/Subcaves | Ambushed by Subdwellers from Twisted Machinery 1538 | -10/Subcaves | Shifting Twisted Machinery released Mak. Light Armor Plating 1655 | -10/Subcaves | Discovered new exit (range 11) 1707 | -10/Subcaves | Learned location of 1 exit from Materials 1723 | -10/Subcaves | Visited 4L-MR0's lab 1799 | -10/Subcaves | A swath of the cavern ceiling suddenly collapsed 1805 | -10/Subcaves | Discovered new exit (range 14) 1811 | -10/Subcaves | Core integrity fell below 50% 1970 | -10/Subcaves | A swath of the cavern ceiling suddenly collapsed 2442 | -10/Subcaves | Build established: Subdweller-Mutant 2529 | -10/Subcaves | Visited Clippyterm 2532 | -10/Subcaves | Learned location of Section 7 (-2) 2791 | -10/Subcaves | A Subdweller sparked back to life 2791 | -10/Subcaves | A Subdweller sparked back to life 2791 | -10/Subcaves | A Subdweller sparked back to life 2820 | -10/Subcaves | Found Rainbow Chip 2886 | -10/Subcaves | Found SUBCON Basin 3108 | -10/Subcaves | Build established: Mutant 3132 | -10/Subcaves | Found Arachnoskeleton 3245 | -10/Subcaves | Core integrity fell below 20% 3306 | -10/Subcaves | Entered Recycling 3349 | -9/Recycling | Scanned before Scraplab entrance 3551 | -9/Recycling | Learned 8 Materials zone layouts 3599 | -9/Recycling | Learned location of Storage (-9) 3637 | -9/Recycling | Learned location of 2 exits from Materials 3663 | -9/Recycling | Learned Materials emergency access door positions 3678 | -9/Recycling | Learned Materials trap positions 3682 | -9/Recycling | Learned Storage trap positions 3696 | -9/Recycling | Learned 2 Storage zone layouts 3721 | -9/Recycling | Learned Storage machine intel 3735 | -9/Recycling | Discovered new exit (range 15) 3909 | -9/Recycling | Entered Scraplab 3927 | -9/Recycling | Discovered new exit (range 3) 3929 | -9/Recycling | Entered Scraptown 4052 | -9/Scraptown | Visited Junk Repository 4092 | -9/Scraptown | Visited Fellowship of the Rings 4113 | -9/Scraptown | Visited SPCMW 4131 | -9/Scraptown | Visited Cyclists 4156 | -9/Scraptown | Visited Assassins FH 4161 | -9/Scraptown | Heard Great Nut preacher, LISTEN AND RECITE! 4169 | -9/Scraptown | Visited Shadow of the Wyrm 4204 | -9/Scraptown | Scanned Subdweller tech in exchange for log data 4210 | -9/Scraptown | Learned location of 1 exit from Research 4211 | -9/Scraptown | Learned Factory emergency access door positions 4227 | -9/Scraptown | Discovered new exit (range 11) 4605 | -9/Scraptown | Visited Science Testing Area 4657 | -9/Scraptown | Visited UFD Registry 4657 | -9/Scraptown | Registered with UFD as "Railslider" 4700 | -9/Scraptown | Entered Cyclist Reading Room 4777 | -9/Scraptown | Visited DA-N13 Charitable Foundation 4787 | -9/Scraptown | Found DCF Scrap (29 items) 4808 | -9/Scraptown | Visited Science Guys 4845 | -9/Scraptown | Visited LU-1G1's Boring Crew 4882 | -9/Scraptown | Delivered Scrap Shield to a Scientist 4985 | -9/Scraptown | Visited Curators Association 5022 | -9/Scraptown | Visited Scrap Suit Storage 5047 | -9/Scraptown | Visited Observation Area 5090 | -9/Scraptown | Visited Botcube Research 5108 | -9/Scraptown | Visited Junk Cannon Lab 5128 | -9/Scraptown | Visited Junk Repository 5396 | -9/Scraptown | Found Botcube 5553 | -9/Scraptown | Met Optimus 5553 | -9/Scraptown | Accepted into 0bPrime 5620 | -9/Scraptown | Discovered new exit (range 3) 5622 | -9/Scraptown | Entered Factory 5622 | -6/Factory | Evolved 8 slots: Power x1, Propulsion x2, Utility x5 5653 | -6/Factory | Loaded intel: 8 recycling unit locations 5917 | -6/Factory | Build established: Derelict-Mutant 6000 | -6/Factory | Discovered new exit (range 16) 6147 | -6/Factory | Lost 15 parts (2p4n5u4w) 6176 | -6/Factory | Core integrity fell below 50% 6365 | -6/Factory | Lost 3 parts (1p1n1w) 6442 | -6/Factory | Learned location of Protoforge (-2) 6656 | -6/Factory | Build established: Scavenger-Mutant 6731 | -6/Factory | Found Prototype Processor 6824 | -6/Factory | Discovered new exit (range 9) 6849 | -6/Factory | Identified Exp. Targeting Computer 7050 | -6/Factory | Identified exit to Garrison 7106 | -6/Factory | Entered Garrison 7204 | -6/Garrison | Build established: Mutant 7242 | -6/Garrison | Core integrity fell below 20% 7274 | -6/Garrison | Attached Arachnoskeleton, gained temporary slots: Propulsion x3 7298 | -6/Garrison | Lost 6 parts (1p2n1u2w) 7307 | -6/Garrison | Destroyed 7 combat bots 7342 | -6/Garrison | Triggered checkpoint 7488 | -6/Garrison | Triggered checkpoint 7502 | -6/Garrison | Triggered checkpoint 7531 | -6/Garrison | Lost 3 parts (1p1u1w) 7539 | -6/Garrison | Build established: Scavenger-Mutant 7568 | -6/Garrison | Discovered new exit (range 14) 7846 | -6/Garrison | Triggered checkpoint 7891 | -6/Garrison | Garrison Relay disabled 7934 | -6/Garrison | Entered Factory 7934 | -5/Factory | Accompanied by 2 allies 7934 | -5/Factory | Evolved 2 slots: Utility x2 8038 | -5/Factory | Sucked down chute 8038 | -5/Factory | Entered Waste 8050 | -5/Waste | Found Broken Adv. Force Booster 8051 | -5/Waste | Spotted C-40 Crusher 8051 | -5/Waste | Spotted C-40 Crusher 8053 | -5/Waste | EMP discharged 8053 | -5/Waste | System corruption reached 10% 8058 | -5/Waste | Spotted C-40 Crusher 8078 | -5/Waste | 2 allies followed down the chute 8086 | -5/Waste | Spotted C-40 Crusher 8087 | -5/Waste | Spotted C-40 Crusher 8096 | -5/Waste | Crushed by Compactor (1 part destroyed, 1 dropped) 8107 | -5/Waste | Discovered new exit (range 11) 8116 | -5/Waste | Entered Factory 8216 | -5/Factory | Identified exit to Upper Caves 8216 | -5/Factory | Identified exit to Extension 8477 | -5/Factory | Destroyed 14 combat bots 8797 | -5/Factory | Entered Upper Caves 8799 | -5/Upper Caves | UFD Scientist delivered a prototype 8811 | -5/Upper Caves | Found Prototype Protection 8866 | -5/Upper Caves | Identified Enh. Scrap Shield 9292 | -5/Upper Caves | Spotted B-75 Beast 9320 | -5/Upper Caves | Destroyed B-75 Beast 9331 | -5/Upper Caves | Build established: Mutant 9424 | -5/Upper Caves | Learned location of 1 exit from Factory 9467 | -5/Upper Caves | Discovered new exit (range 14) 9484 | -5/Upper Caves | Learned location of 1 exit from Upper Caves 9502 | -5/Upper Caves | Entered another Upper Caves area 9503 | -5/Upper Caves | Identified exit to Factory 9627 | -5/Upper Caves | Learned Factory interactive machine intel 9697 | -5/Upper Caves | Attracted the attention of an 0b10 outpost 9785 | -5/Upper Caves | Lost 3 parts (3u) 9821 | -5/Upper Caves | Build established: Scavenger-Mutant 9973 | -5/Upper Caves | Lost 4 parts (1p1n1u1w) 10296 | -5/Upper Caves | Learned 8 Factory zone layouts 10348 | -5/Upper Caves | Attracted the attention of an 0b10 checkpoint 10478 | -5/Upper Caves | Discovered new exit (range 14) 10545 | -5/Upper Caves | Entered Zhirov 10545 | -5/Zhirov | Accompanied by 1 ally 10545 | -5/Zhirov | Discovered new exit (range 3) 10592 | -5/Zhirov | Met Zhirov 10654 | -5/Zhirov | Learned location of Quarantine (-2) 10654 | -5/Zhirov | Learned location of Command (-1) 10683 | -5/Zhirov | Zhirov requested help retrieving the SGEMP Prototype 10845 | -5/Zhirov | Found Alien Artifact 10845 | -5/Zhirov | Identified Integrated Reactor 10845 | -5/Zhirov | Installed Integrated Reactor, increased core energy generation (+10) 10875 | -5/Zhirov | Found Alien Artifact 10981 | -5/Zhirov | Entered Proximity Caves 10981 | -4/Proximity Caves | Accompanied by 1 ally 11077 | -4/Proximity Caves | Spotter reported a threat 11180 | -4/Proximity Caves | Learned Research terminal intel 11509 | -4/Proximity Caves | Discovered exit to Factory (range 6) 11515 | -4/Proximity Caves | Build established: Derelict-Mutant 11520 | -4/Proximity Caves | Entered Factory 11520 | -4/Factory | Accompanied by 1 ally 11520 | -4/Factory | Evolved 2 slots: Utility x2 11521 | -4/Factory | Identified exit to Research 11523 | -4/Factory | Loaded intel: 54 interactive machine locations 11834 | -4/Factory | Identified exit to Upper Caves 11834 | -4/Factory | Identified exit to Armory 11962 | -4/Factory | Lost 4 allies 12281 | -4/Factory | Loaded intel: 8 recycling unit locations 12581 | -4/Factory | Lost 3 parts (1p2u) 12774 | -4/Factory | Discovered exit to Research (range 12) 12926 | -4/Factory | Discovered exit to Research (range 12) 13036 | -4/Factory | Build established: Mutant 13213 | -4/Factory | Lost 3 parts (1n2u) 13270 | -4/Factory | First assault squad dispatched 13405 | -4/Factory | Garrison activated, responded to threat 13428 | -4/Factory | System corruption reached 10% 13480 | -4/Factory | Lost 9 parts (2p2n4u1w) 13503 | -4/Factory | Build established: Scavenger-Mutant 13722 | -4/Factory | Lost 14 parts (2p2n7u3w) 13725 | -4/Factory | Core integrity fell below 50% 13742 | -4/Factory | Entered Upper Caves 13747 | -4/Upper Caves | Learned 8 Research zone layouts 13782 | -4/Upper Caves | Attracted the attention of an 0b10 checkpoint 13802 | -4/Upper Caves | Spotted B-86 Titan 13810 | -4/Upper Caves | Core integrity fell below 20% 13821 | -4/Upper Caves | Identified Transdimensional Reconstructor 13821 | -4/Upper Caves | Warped through subspace 13823 | -4/Upper Caves | Botcube activated 13832 | -4/Upper Caves | Found Botcube 13844 | -4/Upper Caves | Lost 4 parts (1n2u1w) 13921 | -4/Upper Caves | Learned Research garrison access intel 13934 | -4/Upper Caves | Discovered new exit (range 11) 13937 | -4/Upper Caves | Build established: Hacker-Mutant 13937 | -4/Upper Caves | Encountered a Warlord checkpoint 14043 | -4/Upper Caves | Entered another Upper Caves area 14063 | -4/Upper Caves | Discovered exit to Research (range 16) 14081 | -4/Upper Caves | Entered Research 14081 | -3/Research | Evolved 2 slots: Propulsion x2 14082 | -3/Research | Identified exit to Testing 14084 | -3/Research | Loaded intel: 22 terminal locations 14085 | -3/Research | Loaded intel: 4 garrison access locations 14162 | -3/Research | Discovered new exit (range 19) 14187 | -3/Research | Spotted B-86 Titan 14201 | -3/Research | Entered another Research area 14201 | -2/Research | Evolved 2 slots: Propulsion x2 14202 | -2/Research | Identified exit to Quarantine 14232 | -2/Research | Lost 3 parts (1n1u1w) 14285 | -2/Research | Scraphulk reinforcements arrived? 14693 | -2/Research | Spotted B-90 Cyclops 14711 | -2/Research | Spotted B-90 Cyclops 14734 | -2/Research | Entered Quarantine 14886 | -2/Quarantine | Repaired Lyr. Medium Armor Plating 14963 | -2/Quarantine | Repaired Lgt. Quantum Reactor 15051 | -2/Quarantine | Repaired Broken Lrn. Terrain Scanner 15115 | -2/Quarantine | Discovered new exit (range 15) 15124 | -2/Quarantine | Entered Access 15124 | -1/Access | Evolved 2 slots: Propulsion x2 15265 | -1/Access | Scrapoids reinforcements arrived? 15308 | -1/Access | Found Unknown Device 15308 | -1/Access | Identified Quantum Capacitor 15458 | -1/Access | Discovered new exit (range 20) 15538 | -1/Access | Spotted B-99 Colossus 15539 | -1/Access | Spotted B-99 Colossus 15548 | -1/Access | Spotted B-99 Colossus 15555 | -1/Access | Spotted B-99 Colossus 15557 | -1/Access | Scrapoids reinforcements arrived? 15584 | -1/Access | Botcube activated 15610 | -1/Access | Lost 18 parts (1p7n7u3w) 15625 | -1/Access | Core integrity fell below 50% 15630 | -1/Access | Core integrity fell below 20% 15641 | -1/Access | Spotted B-99 Colossus 15678 | -1/Access | Destroyed by P-80 Master with Gamma Rifle Last Messages --------------- 15629_ Slug penetrates Wall. 15629_ Penetrated by Slug. 15629_ U-05 Engineer builds a Wall. 15635_ System corrupted: Heat flow error (+286). 15654_ Slug penetrates Wall. 15654_ Penetrated by Slug. 15655_ Slug penetrates Fabricator. 15657_ Door malfunctions. 15658_ Graphene Brace destroyed. 15662_ Connecting with Recycling Unit... >>Force(Scraphulk) 0bP!AGENT 0bP!ALLOCATE<62-5=57> 0bP!ETA<29> 0bP!WE_ARE_ONE 15662_ ALERT: Suspicious activity at Recycling Unit A004. Dispatching Investigation squad. 15664_ R-10 Processor inserts Mak. Salvage Targeting Computer into recycling unit. 15665_ Recycling unit begins recycling process. Map ----- +----------------------------------------------------+ | # # ?? """"" ################ ###?# | | *# #? ????? # ##"""""# "###???# | | # #?? ???? # ## ####### | | # #?? ? ? # ## + | | # +? ??? ? + ## #### "" | | # # ???? ?? # ## #### ""T"" | | ## #? ?? ? ? ? ?# ## """"" ## """" | | ## ############??# + "" F" ## | | # # ##?# # "" "" #### | | * # #??# / ########### | | + """"" #### # # # | | # # """"" #?## "" # # * =? | | ###### "" F" ##?# "" # # ??? | | ? # #??# Y" # # ????? | | ? # #?## "" # ###+##??### | | ?# ####! "" # #?? # | | " ############## + ### # | | "?" ?#?#???##??#?# # | | "" ? ??#?#?#####??######### | | " ? ???#??##?################+### | | ?? ?###?##??## p # """ !!! | | ??? ?#?#??#?### !! ppp # ""T"" !!! | | ? ? ##?#??##?## ! # "" "" !!! | | ? ??????####### # | | ?#?###########?# # | | #### #?# @ # | | # ### # | | # """"" ##################### """"" | | # """"" # """"" | | # """"" # ! """"" | | # """"" # """"" | | # """"" # """"" | | " + | | # # = | | # # ! | | # # ###+##### | | # "" "" #####+#+## #???????? | | # ""T"" ## # ############ ? ????? | | #### """ ## # #??????????#???????? | | ???# ## # #?#?????????? ????? | | #?## ] ## # #???????#??????????? | | ?#?############ # ##???????????? ??? | | #???#?#?#??#??# # #??????????? ??????? | | ???###???#????# # #???#??#??##???? ??? | | ???####??#?#??# # ##?##???#??????????? | | ###????????#??# # #?????#?#??????????? | | ????#??#?#?### # ##########?#???????? | | ??????#???#???# # #### ###?#? | | ?#??#? ???? ?# # ### | | ???? + ? ????# * # | +----------------------------------------------------+ Best States ------------- Heat Dissipation 108 Coolant Potential 80 Energy Generation 55 Energy Capacity 500 Matter Stores 300 Matter Capacity 300 Sight Range 16 Robot Scan Range 16 Terrain Scan Range 24 Terrain Scan Density 210 Jamming Range 16 Additional Mass Support 9 EM Shielding 3 Corruption Block 15 Armor Coverage 800 Resistance: KI 25 Resistance: TH 25 Resistance: EM 20 Core Shielding 30 Propulsion Shielding 66 Utility Shielding 90 Phase Shifting 10 Evasion (%) 73 Targeting Accuracy 26 Launcher Accuracy 50 Target Analysis 11 Core Analysis 9 Recoil Reduction 4 Energy Filtering 30 Particle Charging 30 Defensive Hacking 38 Item Schematics ----------------- Exp. Targeting Computer | -6/Factory | Scanalyzed Imp. Propulsion Shielding | -6/Factory | Scanalyzed Focal Shield | -6/Factory | Scanalyzed Assault Drone Bay | -5/Zhirov | Free Exp. Heat Sink | -5/Zhirov | Free Exp. Optical Array | -5/Zhirov | Free Imp. Arc Thrower | -5/Zhirov | Free Robot Schematics ------------------ None Fabricated ------------ Nothing Repaired ---------- Lyr. Medium Armor Plating | 35% | -2/Quarantine Lgt. Quantum Reactor | 78% | -2/Quarantine Lrn. Terrain Scanner | 37% | -2/Quarantine | Broken Alien Tech Used ----------------- Integrated Reactor Transdimensional Reconstructor Achievements -------------- None Challenges ------------ None Game ------ Seed SchematicBlanketField Manual? 0 Play Time 04:13:20 Cumulative 272.7 hours Start 2025.05.20 @ 12:30:24 End 2025.05.20 @ 19:12:58 Sessions 3 Manual Loads 0 Difficulty Rogue Special Mode None Game No. 127 Rogue 84 Adventurer 43 Explorer 0 Win Type - Total 6 Types 4/0/1/0/0/0/0/1/0/0 Lore% 77 Gallery% 70 Achievement% 64 Wizard Run 0 Options --------- Layout 0 ASCII 0 Keyboard 0 Movement Mouse Keybinds 0 Fullscreen 1 Font 24/Smallcaps Map View 76x50 Zoom Use 0% Tactical HUD 1 Map Filters NONE Filters NONE Steam 1 RUN: 8a03f327-c7b3-4bc3-8783-ac5572403fa9